fUSD/lending_fUSD_20240905
["ID","MTS","AMOUNT","RATE_DAILY","PERIOD"]
[337208616,1725499900925,-560.47,0.00014987,2]
[337208617,1725499900934,-862.25,0.00014987,2]
[337208618,1725499900943,-500.0,0.00014987,2]
[337208619,1725499900953,-500.0,0.00014987,2]
[337208620,1725499900962,-500.0,0.00014987,2]
[337208621,1725499900971,-1135.77,0.00014987,2]
[337208622,1725499900981,-796.33,0.00014987,2]
[337208623,1725499900990,-500.0,0.00014987,2]
[337208624,1725499901000,-500.0,0.00014987,2]
[337208625,1725499901009,-1978.45,0.00014987,2]
[337208626,1725499901018,-540.37,0.00014987,2]
[337208627,1725499901027,-1109.11,0.00014987,2]
[337208628,1725499901037,-500.0,0.00014987,2]
[337208629,1725499901046,-500.0,0.00014987,2]
[337208630,1725499901055,-2276.04,0.00014987,2]
[337208631,1725499901064,-1209.33,0.00014987,2]
[337208632,1725499901074,-1727.37,0.00014987,2]
[337208633,1725499901083,-1296.22,0.00014987,2]
[337208634,1725499901092,-789.54,0.00014987,2]
[337208635,1725499901101,-500.0,0.00014987,2]
[337208636,1725499901110,-258.85895814,0.00014987,2]
[337208637,1725499901119,-500.0,0.00014987,2]
[337208638,1725499901128,-1052.66,0.00014987,2]
[337208639,1725499901138,-824.74,0.00014987,2]
[337208640,1725499901147,-2588.45,0.00014987,2]
[337208641,1725499901156,-500.0,0.00014987,2]
[337208642,1725499901165,-1754.73,0.00014987,2]
[337208643,1725499901176,-546.97528973,0.00014987,2]
[337208644,1725499901185,-670.76,0.00014987,2]
[337208645,1725499901195,-500.0,0.00014987,2]
[337208646,1725499901204,-500.0,0.00014987,2]
[337208647,1725499901213,-727.65,0.00014987,2]
[337208648,1725499901223,-2441.83,0.00014987,2]
[337208649,1725499901231,-1492.0,0.00014987,2]
[337208650,1725499901241,-500.0,0.00014987,2]
[337208651,1725499901250,-1641.56,0.00014987,2]
[337208652,1725499901259,-1674.36,0.00014987,2]
[337208653,1725499901268,-1419.74,0.00014987,2]
[337208654,1725499901278,-847.26,0.00014987,2]
[337208655,1725499901287,-2457.97,0.00014987,2]
[337208656,1725499901296,-972.62,0.00014987,2]
[337208657,1725499901305,-1836.67,0.00014987,2]
[337208658,1725499901314,-1212.37,0.00014987,2]
[337208659,1725499901323,-3191.96,0.00014987,2]
[337208660,1725499901406,-588.32,0.00014987,2]
[337208661,1725499901415,-500.0,0.00014987,2]
[337208662,1725499901425,-1292.83,0.00014987,2]
[337208663,1725499901434,-1414.9,0.00014987,2]
[337208664,1725499901444,-690.51,0.00014987,2]
[337208665,1725499901453,-690.51,0.00014987,2]
[337208666,1725499901462,-690.51,0.00014987,2]
[337208667,1725499901471,-532.82,0.00014987,2]
[337208668,1725499901481,-654.56,0.00014987,2]
[337208669,1725499901490,-948.49,0.00014987,2]
[337208670,1725499901499,-948.49,0.00014987,2]
[337208671,1725499901508,-948.49,0.00014987,2]
[337208672,1725499901517,-1296.77,0.00014987,2]
[337208673,1725499901526,-672.03,0.00014987,2]
[337208674,1725499901535,-1718.87,0.00014987,2]
[337208675,1725499901545,-2242.12,0.00014987,2]
[337208676,1725499901554,-718.09,0.00014987,2]
[337208677,1725499901563,-718.09,0.00014987,2]
[337208678,1725499901572,-718.09,0.00014987,2]
[337208679,1725499901582,-1689.95,0.00014987,2]
[337208680,1725499901591,-500.0,0.00014987,2]
[337208681,1725499901600,-1449.38,0.00014987,2]
[337208682,1725499901610,-707.13,0.00014987,2]
[337208683,1725499901619,-707.13,0.00014987,2]
[337208684,1725499901628,-707.13,0.00014987,2]
[337208685,1725499901637,-500.0,0.00014987,2]
[337208686,1725499901645,-2505.47,0.00014987,2]
[337208687,1725499901655,-1081.42,0.00014987,2]
[337208688,1725499901664,-500.0,0.00014987,2]
[337208689,1725499901672,-1081.42,0.00014987,2]
[337208690,1725499901682,-1081.42,0.00014987,2]
[337208691,1725499901691,-598.92,0.00014987,2]
[337208692,1725499901701,-1250.86,0.00014987,2]
[337208693,1725499901710,-582.22,0.00014987,2]
[337208694,1725499901719,-1263.54,0.00014987,2]
[337208695,1725499901729,-589.04,0.00014987,2]
[337208696,1725499901738,-589.04,0.00014987,2]
[337208697,1725499901747,-589.04,0.00014987,2]
[337208698,1725499901756,-1131.93,0.00014987,2]
[337208699,1725499901765,-883.63,0.00014987,2]
[337208700,1725499901774,-661.23,0.00014987,2]
[337208701,1725499901783,-883.63,0.00014987,2]
[337208702,1725499901792,-883.63,0.00014987,2]
[337208703,1725499901801,-1844.16,0.00014987,2]
[337208704,1725499901810,-1585.55,0.00014987,2]
[337208705,1725499901819,-819.6,0.00014987,2]
[337208706,1725499901828,-819.6,0.00014987,2]
[337208707,1725499901837,-819.6,0.00014987,2]
[337208708,1725499901846,-526.8,0.00014987,2]
[337208709,1725499901855,-1536.8,0.00014987,2]
[337208710,1725499901864,-500.0,0.00014987,2]
[337208711,1725499901874,-500.0,0.00014987,2]
[337208712,1725499901883,-500.0,0.00014987,2]
[337208713,1725499901893,-500.0,0.00014987,2]
[337208714,1725499901902,-2011.23,0.00014987,2]
[337208715,1725499901911,-553.13,0.00014987,2]
[337208716,1725499901921,-848.09,0.00014987,2]
[337208717,1725499901931,-500.0,0.00014987,2]
[337208718,1725499901940,-351.90558296,0.00014987,2]
[337208719,1725499901949,-1099.51,0.00014987,2]
[337208720,1725499901958,-1099.51,0.00014987,2]
[337208721,1725499901967,-785.27,0.00014987,2]
[337208722,1725499901975,-1099.51,0.00014987,2]
[337208723,1725499901985,-500.0,0.00014987,2]
[337208724,1725499901994,-1306.19,0.00014987,2]
[337208725,1725499902003,-1306.19,0.00014987,2]
[337208726,1725499902012,-1306.19,0.00014987,2]
[337208727,1725499902022,-609.57,0.00014987,2]
[337208728,1725499902031,-1854.25,0.00014987,2]
[337208729,1725499902040,-1854.25,0.00014987,2]
[337208730,1725499902050,-1854.25,0.00014987,2]
[337208731,1725499902059,-1748.6,0.00014987,2]
[337208732,1725499902068,-1571.84,0.00014987,2]
[337208733,1725499902077,-1571.84,0.00014987,2]
[337208734,1725499902086,-1571.84,0.00014987,2]
[337208735,1725499902095,-500.0,0.00014987,2]
[337208736,1725499902104,-558.3,0.00014987,2]
[337208737,1725499902113,-753.04,0.00014987,2]
[337208738,1725499902121,-857.22,0.00014987,2]
[337208739,1725499902130,-857.22,0.00014987,2]
[337208740,1725499902139,-857.22,0.00014987,2]
[337208741,1725499902148,-1555.38,0.00014987,2]
[337208742,1725499902157,-500.0,0.00014987,2]
[337208743,1725499902166,-999.59,0.00014987,2]
[337208744,1725499902181,-999.59,0.00014987,2]
[337208745,1725499902193,-999.59,0.00014987,2]
[337208746,1725499902203,-500.0,0.00014987,2]
[337208747,1725499902212,-892.82,0.00014987,2]
[337208748,1725499902220,-1421.44,0.00014987,2]
[337208749,1725499902229,-1421.44,0.00014987,2]
[337208750,1725499902238,-1421.44,0.00014987,2]
[337208751,1725499902246,-1507.87,0.00014987,2]
[337208752,1725499902255,-830.42,0.00014987,2]
[337208753,1725499902264,-640.4,0.00014987,2]
[337208754,1725499902273,-500.0,0.00014987,2]
[337208755,1725499902282,-2448.06,0.00014987,2]
[337208756,1725499902291,-2448.06,0.00014987,2]
[337208757,1725499902299,-2448.06,0.00014987,2]
[337208758,1725499902308,-513.32,0.00014987,2]
[337208759,1725499902318,-2307.61,0.00014987,2]
[337208760,1725499902326,-4417.42,0.00014987,2]
[337208761,1725499902335,-4417.42,0.00014987,2]
[337208762,1725499902344,-4417.42,0.00014987,2]
[337208763,1725499902353,-2107.48,0.00014987,2]
[337208764,1725499902362,-500.0,0.00014987,2]
[337208765,1725499902372,-500.0,0.00014987,2]
[337208766,1725499902383,-500.0,0.00014987,2]
[337208767,1725499902392,-500.0,0.00014987,2]
[337208768,1725499902400,-4965.31,0.00014987,2]
[337208769,1725499902409,-4965.31,0.00014987,2]
[337208770,1725499902423,-4965.31,0.00014987,2]
[337208771,1725499902432,-538.87,0.00014987,2]
[337208772,1725499902440,-538.87,0.00014987,2]
[337208773,1725499902451,-538.87,0.00014987,2]
[337208774,1725499902461,-1445.89,0.00014987,2]
[337208775,1725499902470,-1677.59,0.00014987,2]
[337208776,1725499902480,-586.76,0.00014987,2]
[337208777,1725499902489,-586.76,0.00014987,2]
[337208778,1725499902498,-586.76,0.00014987,2]
[337208779,1725499902507,-880.76,0.00014987,2]
[337208780,1725499902517,-708.92,0.00014987,2]
[337208781,1725499902527,-708.92,0.00014987,2]
[337208782,1725499902535,-708.92,0.00014987,2]
[337208783,1725499902545,-500.0,0.00014987,2]
[337208784,1725499902555,-576.1,0.00014987,2]
[337208785,1725499902563,-576.1,0.00014987,2]
[337208786,1725499902573,-576.1,0.00014987,2]
[337208787,1725499902582,-500.0,0.00014987,2]
[337208788,1725499902591,-998.24,0.00014987,2]
[337208789,1725499902600,-998.24,0.00014987,2]
[337208790,1725499902609,-998.24,0.00014987,2]
[337208791,1725499902618,-659.92,0.00014987,2]
[337208792,1725499902627,-500.0,0.00014987,2]
[337208793,1725499902637,-500.0,0.00014987,2]
[337208794,1725499902646,-500.0,0.00014987,2]
[337208795,1725499902656,-510.56,0.00014987,2]
[337208796,1725499902666,-1608.34,0.00014987,2]
[337208797,1725499902675,-825.19,0.00014987,2]
[337208798,1725499902684,-825.19,0.00014987,2]
[337208799,1725499902693,-825.19,0.00014987,2]
[337208800,1725499902703,-722.78,0.00014987,2]
[337208801,1725499902712,-688.84,0.00014987,2]
[337208802,1725499902721,-688.84,0.00014987,2]
[337208803,1725499902731,-688.84,0.00014987,2]
[337208804,1725499902740,-915.18,0.00014987,2]
[337208805,1725499902749,-915.18,0.00014987,2]
[337208806,1725499902758,-915.18,0.00014987,2]
[337208807,1725499902767,-500.0,0.00014987,2]
[337208808,1725499902777,-1362.47,0.00014987,2]
[337208809,1725499902787,-1362.47,0.00014987,2]
[337208810,1725499902797,-1362.47,0.00014987,2]
[337208811,1725499902806,-500.0,0.00014987,2]
[337208812,1725499902816,-1116.52,0.00014987,2]
[337208813,1725499902826,-1116.52,0.00014987,2]
[337208814,1725499902836,-1116.52,0.00014987,2]
[337208815,1725499902845,-1116.52,0.00014987,2]
[337208816,1725499902854,-1116.52,0.00014987,2]
[337208817,1725499902864,-1116.52,0.00014987,2]
[337208818,1725499902873,-1116.60712359,0.00014987,2]
[337208819,1725499902882,-500.0,0.00014987,2]
[337208820,1725499902892,-1036.2,0.00014987,2]
[337208821,1725499902902,-1036.2,0.00014987,2]
[337208822,1725499902911,-1036.2,0.00014987,2]
[337208823,1725499902920,-1036.2,0.00014987,2]
[337208824,1725499902931,-1036.2,0.00014987,2]
[337208825,1725499902940,-500.0,0.00014987,2]
[337208826,1725499902950,-1036.2,0.00014987,2]
[337208827,1725499902959,-500.0,0.00014987,2]
[337208828,1725499902968,-1036.36,0.00014987,2]
[337208829,1725499902977,-500.0,0.00014987,2]
[337208830,1725499902986,-1724.96,0.00014987,2]
[337208831,1725499902995,-500.0,0.00014987,2]
[337208832,1725499903004,-1231.11,0.00014987,2]
[337208833,1725499903013,-1231.11,0.00014987,2]
[337208834,1725499903023,-1231.11,0.00014987,2]
[337208835,1725499903032,-1231.11,0.00014987,2]
[337208836,1725499903041,-1231.11,0.00014987,2]
[337208837,1725499903051,-1798.63,0.00014987,2]
[337208838,1725499903060,-1231.11,0.00014987,2]
[337208839,1725499903069,-1798.63,0.00014987,2]
[337208840,1725499903078,-1231.29459704,0.00014987,2]
[337208841,1725499903087,-1798.63,0.00014987,2]
[337208842,1725499903096,-1176.37,0.00014987,2]
[337208843,1725499903105,-1176.37,0.00014987,2]
[337208844,1725499903114,-1176.37,0.00014987,2]
[337208845,1725499903124,-1176.37,0.00014987,2]
[337208846,1725499903133,-1176.37,0.00014987,2]
[337208847,1725499903142,-1176.37,0.00014987,2]
[337208848,1725499903151,-1176.58285486,0.00014987,2]
[337208849,1725499903161,-521.82,0.00014987,2]
[337208850,1725499903170,-538.47,0.00014987,2]
[337208851,1725499903181,-538.47,0.00014987,2]
[337208852,1725499903191,-538.47,0.00014987,2]
[337208853,1725499903200,-587.08,0.00014987,2]
[337208854,1725499903210,-972.25,0.00014987,2]
[337208855,1725499903219,-972.25,0.00014987,2]
[337208856,1725499903228,-972.25,0.00014987,2]
[337208857,1725499903238,-500.0,0.00014987,2]
[337208858,1725499903247,-500.0,0.00014987,2]
[337208859,1725499903256,-500.0,0.00014987,2]
[337208860,1725499903265,-500.0,0.00014987,2]
[337208861,1725499903274,-500.0,0.00014987,2]
[337208862,1725499903283,-500.0,0.00014987,2]
[337208863,1725499903292,-500.0,0.00014987,2]
[337208864,1725499903301,-424.07295927,0.00014987,2]
[337208865,1725499903311,-500.0,0.00014987,2]
[337208866,1725499903320,-500.0,0.00014987,2]
[337208867,1725499903329,-500.0,0.00014987,2]
[337208868,1725499903338,-1590.51,0.00014987,2]
[337208869,1725499903348,-1462.93,0.00014987,2]
[337208870,1725499903357,-1936.63,0.00014987,2]
[337208871,1725499903367,-1936.63,0.00014987,2]
[337208872,1725499903379,-1936.63,0.00014987,2]
[337208873,1725499903389,-1133.18,0.00014987,2]
[337208874,1725499903398,-1133.18,0.00014987,2]
[337208875,1725499903408,-1133.18,0.00014987,2]
[337208876,1725499903417,-654.17,0.00014987,2]
[337208877,1725499903426,-847.62,0.00014987,2]
[337208878,1725499903436,-847.62,0.00014987,2]
[337208879,1725499903445,-847.62,0.00014987,2]
[337208880,1725499903454,-1611.08,0.00014987,2]
[337208881,1725499903464,-1430.56,0.00014987,2]
[337208882,1725499903474,-1430.56,0.00014987,2]
[337208883,1725499903484,-1430.56,0.00014987,2]
[337208884,1725499903494,-196.91476065,0.00014987,2]
[337208885,1725499903503,-500.0,0.00014987,2]
[337208886,1725499903513,-500.0,0.00014987,2]
[337208887,1725499903522,-1510.15,0.00014987,2]
[337208888,1725499903532,-1510.15,0.00014987,2]
[337208889,1725499903542,-1510.15,0.00014987,2]
[337208890,1725499903551,-1256.44,0.00014987,2]
[337208891,1725499903561,-1256.44,0.00014987,2]
[337208892,1725499903571,-1256.44,0.00014987,2]
[337208893,1725499903581,-1175.31,0.00014987,2]
[337208894,1725499903590,-500.0,0.00014987,2]
[337208895,1725499903600,-568.54,0.00014987,2]
[337208896,1725499903609,-568.54,0.00014987,2]
[337208897,1725499903619,-568.54,0.00014987,2]
[337208898,1725499903629,-510.09,0.00014987,2]
[337208899,1725499903638,-1737.85,0.00014987,2]
[337208900,1725499903648,-1737.85,0.00014987,2]
[337208901,1725499903658,-1737.85,0.00014987,2]
[337208902,1725499903668,-2743.76,0.00014987,2]
[337208903,1725499903679,-2743.76,0.00014987,2]
[337208904,1725499903689,-2743.76,0.00014987,2]
[337208905,1725499903699,-500.0,0.00014987,2]
[337208906,1725499903708,-1720.65,0.00014987,2]
[337208907,1725499903718,-1720.65,0.00014987,2]
[337208908,1725499903728,-1720.65,0.00014987,2]
[337208909,1725499903738,-500.0,0.00014987,2]
[337208910,1725499903747,-500.0,0.00014987,2]
[337208911,1725499903758,-500.0,0.00014987,2]
[337208912,1725499903768,-500.0,0.00014987,2]
[337208913,1725499903778,-500.0,0.00014987,2]
[337208914,1725499903788,-500.0,0.00014987,2]
[337208915,1725499903798,-500.0,0.00014987,2]
[337208916,1725499903807,-500.0,0.00014987,2]
[337208917,1725499903817,-500.0,0.00014987,2]
[337208918,1725499903826,-500.0,0.00014987,2]
[337208919,1725499903836,-500.0,0.00014987,2]
[337208920,1725499903845,-500.0,0.00014987,2]
[337208921,1725499903854,-500.0,0.00014987,2]
[337208922,1725499903864,-500.0,0.00014987,2]
[337208923,1725499903873,-500.0,0.00014987,2]
[337208924,1725499903883,-502.43,0.00014987,2]
[337208925,1725499903892,-502.43,0.00014987,2]
[337208926,1725499903902,-502.43,0.00014987,2]
[337208927,1725499903912,-502.43,0.00014987,2]
[337208928,1725499903923,-566.68,0.00014987,2]
[337208929,1725499903932,-566.68,0.00014987,2]
[337208930,1725499903942,-566.68,0.00014987,2]
[337208931,1725499903951,-566.68,0.00014987,2]
[337208932,1725499903960,-523.34,0.00014987,2]
[337208933,1725499903969,-523.34,0.00014987,2]
[337208934,1725499903979,-523.34,0.00014987,2]
[337208935,1725499903988,-523.34,0.00014987,2]
[337208936,1725499903997,-500.0,0.00014987,2]
[337208937,1725499904007,-500.0,0.00014987,2]
[337208938,1725499904017,-500.0,0.00014987,2]
[337208939,1725499904026,-500.0,0.00014987,2]
[337208940,1725499904035,-500.0,0.00014987,2]
[337208941,1725499904045,-500.0,0.00014987,2]
[337208942,1725499904054,-500.0,0.00014987,2]
[337208943,1725499904064,-500.0,0.00014987,2]
[337208944,1725499904073,-500.0,0.00014987,2]
[337208945,1725499904083,-500.0,0.00014987,2]
[337208946,1725499904092,-500.0,0.00014987,2]
[337208947,1725499904102,-500.0,0.00014987,2]
[337208948,1725499904112,-220.07860374,0.00014987,2]
[337208949,1725499904121,-500.0,0.00014987,2]
[337208950,1725499904130,-500.0,0.00014987,2]
[337208951,1725499904141,-500.0,0.00014987,2]
[337208952,1725499904152,-500.0,0.00014987,2]
[337208953,1725499904161,-684.18,0.00014987,2]
[337208954,1725499904170,-684.18,0.00014987,2]
[337208955,1725499904179,-684.18,0.00014987,2]
[337208956,1725499904189,-684.18,0.00014987,2]
[337208957,1725499904198,-500.0,0.00014987,2]
[337208958,1725499904208,-500.0,0.00014987,2]
[337208959,1725499904217,-516.94257474,0.00014987,2]
[337208960,1725499904226,-689.4,0.00014987,2]
[337208961,1725499904236,-689.4,0.00014987,2]
[337208962,1725499904245,-689.4,0.00014987,2]
[337208963,1725499904254,-689.4,0.00014987,2]
[337208964,1725499904264,-500.0,0.00014987,2]
[337208965,1725499904273,-186.25446479,0.00014987,2]
[337208966,1725499904282,-500.0,0.00014987,2]
[337208967,1725499904291,-500.0,0.00014987,2]
[337208968,1725499904301,-500.0,0.00014987,2]
[337208969,1725499904310,-500.0,0.00014987,2]
[337208970,1725499904320,-500.0,0.00014987,2]
[337208971,1725499904329,-500.0,0.00014987,2]
[337208972,1725499904338,-500.0,0.00014987,2]
[337208973,1725499904347,-500.0,0.00014987,2]
[337208974,1725499904356,-500.0,0.00014987,2]
[337208975,1725499904367,-500.0,0.00014987,2]
[337208976,1725499904378,-500.0,0.00014987,2]
[337208977,1725499904388,-500.0,0.00014987,2]
[337208978,1725499904398,-500.0,0.00014987,2]
[337208979,1725499904407,-523.43,0.00014987,2]
[337208980,1725499904417,-523.43,0.00014987,2]
[337208981,1725499904429,-523.43,0.00014987,2]
[337208982,1725499904438,-523.43,0.00014987,2]
[337208983,1725499904447,-1063.87,0.00014987,2]
[337208984,1725499904457,-1063.87,0.00014987,2]
[337208985,1725499904468,-1063.87,0.00014987,2]
[337208986,1725499904477,-1063.87,0.00014987,2]
[337208987,1725499904487,-500.0,0.00014987,2]
[337208988,1725499904497,-500.0,0.00014987,2]
[337208989,1725499904507,-500.0,0.00014987,2]
[337208990,1725499904516,-748.34,0.00014987,2]
[337208991,1725499904525,-500.0,0.00014987,2]
[337208992,1725499904535,-500.0,0.00014987,2]
[337208993,1725499904546,-748.34,0.00014987,2]
[337208994,1725499904555,-500.0,0.00014987,2]
[337208995,1725499904565,-500.0,0.00014987,2]
[337208996,1725499904574,-748.34,0.00014987,2]
[337208997,1725499904585,-748.34,0.00014987,2]
[337208998,1725499904595,-500.0,0.00014987,2]
[337208999,1725499904605,-680.6,0.00014987,2]
[337209000,1725499904615,-680.6,0.00014987,2]
[337209001,1725499904625,-680.6,0.00014987,2]
[337209002,1725499904635,-680.6,0.00014987,2]
[337209003,1725499904645,-1068.03,0.00014987,2]
[337209004,1725499904655,-1068.03,0.00014987,2]
[337209005,1725499904665,-1068.03,0.00014987,2]
[337209006,1725499904677,-1068.03,0.00014987,2]
[337209007,1725499904687,-1165.14,0.00014987,2]
[337209008,1725499904697,-1165.14,0.00014987,2]
[337209009,1725499904707,-1165.14,0.00014987,2]
[337209010,1725499904716,-1165.14,0.00014987,2]
[337209011,1725499904726,-500.0,0.00014987,2]
[337209012,1725499904736,-217.40459581,0.00014987,2]
[337209013,1725499904746,-500.0,0.00014987,2]
[337209014,1725499904755,-626.51,0.00014987,2]
[337209015,1725499904765,-500.0,0.00014987,2]
[337209016,1725499904774,-626.51,0.00014987,2]
[337209017,1725499904784,-500.0,0.00014987,2]
[337209018,1725499904794,-626.51,0.00014987,2]
[337209019,1725499904803,-500.0,0.00014987,2]
[337209020,1725499904813,-626.51,0.00014987,2]
[337209021,1725499904823,-500.0,0.00014987,2]
[337209022,1725499904833,-500.0,0.00014987,2]
[337209023,1725499904842,-500.0,0.00014987,2]
[337209024,1725499904852,-738.86,0.00014987,2]
[337209025,1725499904862,-738.86,0.00014987,2]
[337209026,1725499904872,-738.86,0.00014987,2]
[337209027,1725499904882,-738.86,0.00014987,2]
[337209028,1725499904893,-500.0,0.00014987,2]
[337209029,1725499904903,-500.0,0.00014987,2]
[337209030,1725499904913,-500.0,0.00014987,2]
[337209031,1725499904924,-778.18,0.00014987,2]
[337209032,1725499904933,-778.18,0.00014987,2]
[337209033,1725499904943,-500.0,0.00014987,2]
[337209034,1725499904953,-778.18,0.00014987,2]
[337209035,1725499904962,-778.18,0.00014987,2]
[337209036,1725499904972,-297.3216698,0.00014987,2]
[337209037,1725499904983,-500.0,0.00014987,2]
[337209038,1725499904993,-500.0,0.00014987,2]
[337209039,1725499905002,-500.0,0.00014987,2]
[337209040,1725499905012,-500.0,0.00014987,2]
[337209041,1725499905021,-500.0,0.00014987,2]
[337209042,1725499905031,-500.0,0.00014987,2]
[337209043,1725499905040,-500.0,0.00014987,2]
[337209044,1725499905049,-500.0,0.00014987,2]
[337209045,1725499905059,-870.19,0.00014987,2]
[337209046,1725499905068,-870.19,0.00014987,2]
[337209047,1725499905078,-870.19,0.00014987,2]
[337209048,1725499905087,-870.19,0.00014987,2]
[337209049,1725499905097,-1346.71,0.00014987,2]
[337209050,1725499905107,-1346.71,0.00014987,2]
[337209051,1725499905116,-1346.71,0.00014987,2]
[337209052,1725499905126,-1346.71,0.00014987,2]
[337209053,1725499905135,-1038.65,0.00014987,2]
[337209054,1725499905145,-1038.65,0.00014987,2]
[337209055,1725499905155,-1038.65,0.00014987,2]
[337209056,1725499905164,-1038.65,0.00014987,2]
[337209057,1725499905175,-500.0,0.00014987,2]
[337209058,1725499905184,-500.0,0.00014987,2]
[337209059,1725499905194,-500.0,0.00014987,2]
[337209060,1725499905203,-500.0,0.00014987,2]
[337209061,1725499905212,-500.0,0.00014987,2]
[337209062,1725499905222,-500.0,0.00014987,2]
[337209063,1725499905232,-551.12359712,0.00014987,2]
[337209064,1725499905242,-500.0,0.00014987,2]
[337209065,1725499905252,-500.0,0.00014987,2]
[337209066,1725499905261,-500.0,0.00014987,2]
[337209067,1725499905271,-500.0,0.00014987,2]
[337209068,1725499905281,-500.0,0.00014987,2]
[337209069,1725499905291,-500.0,0.00014987,2]
[337209070,1725499905301,-500.0,0.00014987,2]
[337209071,1725499905310,-543.64,0.00014987,2]
[337209072,1725499905320,-543.64,0.00014987,2]
[337209073,1725499905330,-543.64,0.00014987,2]
[337209074,1725499905340,-543.64,0.00014987,2]
[337209075,1725499905349,-500.0,0.00014987,2]
[337209076,1725499905359,-500.0,0.00014987,2]
[337209077,1725499905371,-500.0,0.00014987,2]
[337209078,1725499905385,-500.0,0.00014987,2]
[337209079,1725499905395,-500.0,0.00014987,2]
[337209080,1725499905405,-500.0,0.00014987,2]
[337209081,1725499905415,-500.0,0.00014987,2]
[337209082,1725499905427,-500.0,0.00014987,2]
[337209083,1725499905437,-535.96,0.00014987,2]
[337209084,1725499905451,-535.96,0.00014987,2]
[337209085,1725499905461,-535.96,0.00014987,2]
[337209086,1725499905471,-535.96,0.00014987,2]
[337209087,1725499905481,-1725.32,0.00014987,2]
[337209088,1725499905491,-1725.32,0.00014987,2]
[337209089,1725499905501,-1725.32,0.00014987,2]
[337209090,1725499905511,-1180.11,0.00014987,2]
[337209091,1725499905521,-1725.32,0.00014987,2]
[337209092,1725499905530,-1180.11,0.00014987,2]
[337209093,1725499905540,-1180.11,0.00014987,2]
[337209094,1725499905550,-1180.11,0.00014987,2]
[337209095,1725499905560,-500.0,0.00014987,2]
[337209096,1725499905570,-500.0,0.00014987,2]
[337209097,1725499905580,-500.0,0.00014987,2]
[337209098,1725499905589,-500.0,0.00014987,2]
[337209099,1725499905599,-665.85,0.00014987,2]
[337209100,1725499905609,-665.85,0.00014987,2]
[337209101,1725499905618,-665.85,0.00014987,2]
[337209102,1725499905628,-665.85,0.00014987,2]
[337209103,1725499905638,-1249.95,0.00014987,2]
[337209104,1725499905648,-1249.95,0.00014987,2]
[337209105,1725499905658,-1249.95,0.00014987,2]
[337209106,1725499905668,-1249.95,0.00014987,2]
[337209107,1725499905681,-885.56,0.00014987,2]
[337209108,1725499905897,-885.56,0.00014987,2]
[337209109,1725499905907,-885.56,0.00014987,2]
[337209110,1725499905920,-885.56,0.00014987,2]
[337209111,1725499905932,-1243.05,0.00014987,2]
[337209112,1725499905942,-1243.05,0.00014987,2]
[337209113,1725499905952,-1243.05,0.00014987,2]
[337209114,1725499905962,-1243.05,0.00014987,2]
[337209115,1725499905972,-500.0,0.00014987,2]